bitfinex/quotes_BTCUSD_20250903
["timestamp","ask_amount","ask_price","bid_price","bid_amount"]
[1756935944715,0.83205198,112030.0,112020.0,0.0024]
[1756935944954,0.47037189,112030.0,112020.0,0.0034]
[1756935945188,0.83205198,112030.0,112020.0,0.0034]
[1756935945398,0.47037189,112030.0,112020.0,0.0034]
[1756935945623,1.19373207,112030.0,112020.0,0.0034]
[1756935946315,0.47037189,112030.0,112020.0,0.0034]
[1756935946492,1.19373207,112030.0,112020.0,0.0034]
[1756935946971,0.47037189,112030.0,112020.0,0.0034]
[1756935947202,1.19373207,112030.0,112020.0,0.0034]
[1756935947418,0.47037189,112030.0,112020.0,0.0034]
[1756935947896,1.23466794,112030.0,112020.0,0.0034]
[1756935948112,0.51130776,112030.0,112020.0,0.0034]
[1756935948323,1.23466794,112030.0,112020.0,0.0034]
[1756935950807,0.51130776,112030.0,112020.0,0.0034]
[1756935951040,1.23466794,112030.0,112020.0,0.0034]
[1756935955395,0.50830776,112030.0,112020.0,0.0034]
[1756935955593,1.23466794,112030.0,112020.0,0.0034]
[1756935955884,0.87298785,112030.0,112020.0,0.0034]
[1756935957179,0.51130776,112030.0,112020.0,0.0034]
[1756935957409,0.87298785,112030.0,112020.0,0.0034]
[1756935957622,0.99402761,112030.0,112020.0,0.0034]
[1756935958068,0.97122761,112030.0,112020.0,0.0034]
[1756935959170,0.48850776,112030.0,112020.0,0.0034]
[1756935959435,0.97122761,112030.0,112020.0,0.0034]
[1756935960018,0.48850776,112030.0,112020.0,0.0034]
[1756935960245,0.97122761,112030.0,112020.0,0.0034]
[1756935961462,0.96822761,112030.0,112020.0,0.0034]
[1756935961693,0.97122761,112030.0,112020.0,0.0034]
[1756935961938,0.48850776,112030.0,112020.0,0.0034]
[1756935962158,0.97122761,112030.0,112020.0,0.0034]
[1756935963654,0.96822761,112030.0,112020.0,0.0034]
[1756935963873,0.48550776,112030.0,112020.0,0.0034]
[1756935964120,0.96822761,112030.0,112020.0,0.0034]
[1756935964815,0.97122761,112030.0,112020.0,0.0034]
[1756935967610,0.93029174,112030.0,112020.0,0.0034]
[1756935968987,1.29165354,112030.0,112020.0,0.0034]
[1756935969192,1.37974075,112030.0,112020.0,0.0034]
[1756935969407,1.41185986,112030.0,112020.0,0.0034]
[1756935969995,1.38967684,112030.0,112020.0,0.0034]
[1756935970214,1.40006858,112030.0,112020.0,0.0024]
[1756935970867,1.40006858,112030.0,112020.0,0.0004]
[1756935971077,1.42243038,112030.0,112020.0,0.0004]
[1756935971503,1.42143038,112030.0,112020.0,0.0004]
[1756935971707,1.42343038,112030.0,112020.0,0.0004]
[1756935971915,1.39230383,112030.0,112020.0,0.0004]
[1756935972145,1.42346225,112030.0,112020.0,0.0004]
[1756935972779,1.46379086,112030.0,112020.0,0.0004]
[1756935972969,1.48597388,112030.0,112020.0,0.0004]
[1756935973113,1.48697388,112030.0,112020.0,0.0004]
[1756935977088,1.45522034,112030.0,112020.0,0.0004]
[1756935978881,1.48697388,112030.0,112020.0,0.0004]
[1756935979098,1.45522034,112030.0,112020.0,0.0004]
[1756935985809,1.45518738,112030.0,112020.0,0.0004]
[1756935986220,1.45518751,112030.0,112020.0,0.0004]
[1756935989027,0.97246766,112030.0,112020.0,0.0004]
[1756935989186,1.43123038,112030.0,112020.0,0.0004]
[1756935990381,1.40741523,112030.0,112020.0,0.0004]
[1756935991799,1.3908121,112030.0,112020.0,0.0004]
[1756935992249,1.38251184,112030.0,112020.0,0.0004]
[1756935992659,1.34218323,112030.0,112020.0,0.0004]
[1756935993298,1.32000021,112030.0,112020.0,0.0004]
[1756935995609,0.83728036,112030.0,112020.0,0.0004]
[1756935995817,1.32000021,112030.0,112020.0,0.0004]
[1756935996571,1.29863841,112030.0,112020.0,1e-08]
[1756935996795,1.32000021,112030.0,112020.0,1e-08]
[1756935997120,1.34684822,112030.0,112020.0,1e-08]
[1756936000038,0.86412837,112030.0,112020.0,1e-08]
[1756936000214,1.34684822,112030.0,112020.0,1e-08]
[1756936002472,0.34,112020.0,112000.0,1e-08]
[1756936002690,2.06999883,112010.0,112000.0,1e-08]
[1756936002911,2.12001329,112010.0,112000.0,1e-08]
[1756936003122,2.15035964,112010.0,112000.0,1e-08]
[1756936003327,2.1742635,112010.0,112000.0,1e-08]
[1756936003721,2.14634309,112010.0,112000.0,1e-08]
[1756936003928,1.27281938,112010.0,112000.0,1e-08]
[1756936004343,1.29848058,112010.0,112000.0,1e-08]
[1756936004594,1.30048058,112010.0,112000.0,1e-08]
[1756936004823,1.30036058,112010.0,112000.0,1e-08]
[1756936006605,1.30034097,112010.0,112000.0,1e-08]
[1756936007187,1.31434512,112010.0,112000.0,1e-08]
[1756936007356,1.3365281,112010.0,112000.0,1e-08]
[1756936008183,1.33644617,112010.0,112000.0,1e-08]
[1756936009943,1.33637023,112010.0,112000.0,1e-08]
[1756936013021,1.23959738,112010.0,112000.0,0.00535001]
[1756936013251,2.02633826,112010.0,112000.0,0.00535001]
[1756936013458,2.15849933,112010.0,112000.0,0.00535001]
[1756936013674,2.17943815,112010.0,112000.0,0.00535001]
[1756936014809,1.87171815,112010.0,112000.0,0.00535001]
[1756936015012,2.02935815,112010.0,112000.0,0.00535001]
[1756936017908,2.03130815,112010.0,112000.0,0.00535001]
[1756936018306,2.02935815,112010.0,112000.0,0.00535001]
[1756936018488,1.87171815,112010.0,112000.0,0.00535001]
[1756936018839,2.02915815,112010.0,112000.0,0.00535001]
[1756936019574,2.15069834,112010.0,112000.0,0.00535001]
[1756936022016,2.15264834,112010.0,112000.0,0.00535001]
[1756936022339,2.15248834,112010.0,112000.0,0.00535001]
[1756936022752,1.99520834,112010.0,112000.0,0.00535001]
[1756936022951,2.15232834,112010.0,112000.0,0.00535001]
[1756936024056,1.99520834,112010.0,112000.0,0.00535001]
[1756936024274,2.15232834,112010.0,112000.0,0.00535001]
[1756936026515,1.99520834,112010.0,112000.0,0.00535001]
[1756936026725,2.15208834,112010.0,112000.0,0.00535001]
[1756936030126,1.74452991,112010.0,112000.0,0.00535001]
[1756936030282,1.7445136,112010.0,112000.0,0.00535001]
[1756936035194,1.5877936,112010.0,112000.0,0.00535001]
[1756936035397,1.7440736,112010.0,112000.0,0.00535001]
[1756936035594,1.65215761,112010.0,112000.0,0.00535001]
[1756936036256,1.64594802,112010.0,112000.0,0.00535001]
[1756936037461,1.63764958,112010.0,112000.0,0.00535001]
[1756936038259,0.89391031,112010.0,112000.0,0.00535001]
[1756936038484,1.61856357,112010.0,112000.0,0.00535001]
[1756936038685,1.71047956,112010.0,112000.0,0.00535001]
[1756936043849,0.9858263,112010.0,112000.0,0.00535001]
[1756936044065,1.71047956,112010.0,112000.0,0.00535001]
[1756936044891,1.70847956,112010.0,112000.0,0.00535001]
[1756936045339,1.70947956,112010.0,112000.0,0.00535001]
[1756936045559,1.70547956,112010.0,112000.0,0.00535001]
[1756936045764,1.70747956,112010.0,112000.0,0.00535001]
[1756936050509,0.8863793,112010.0,112000.0,0.00535001]
[1756936051420,0.52405267,112010.0,112000.0,0.00535001]
[1756936051635,0.8863793,112010.0,112000.0,0.00535001]
[1756936052041,0.8843793,112010.0,112000.0,0.00535001]
[1756936052268,0.8853793,112010.0,112000.0,0.00535001]
[1756936053305,0.8843793,112010.0,112000.0,0.00535001]
[1756936054358,0.97629529,112010.0,112000.0,0.00535001]
[1756936054568,0.8843793,112010.0,112000.0,0.00535001]
[1756936068221,0.8864593,112010.0,112000.0,0.00535001]
[1756936068420,0.52205267,112010.0,112000.0,0.00535001]
[1756936068736,0.8843793,112010.0,112000.0,0.00535001]
[1756936069697,0.8843793,112010.0,112000.0,0.00758215]
[1756936072832,0.8864593,112010.0,112000.0,0.00758215]
[1756936074996,0.52413267,112010.0,112000.0,0.00758215]
[1756936075206,0.8864593,112010.0,112000.0,0.00758215]
[1756936076405,0.52413267,112010.0,112000.0,0.00758215]
[1756936076613,0.8864593,112010.0,112000.0,0.00758215]
[1756936078615,0.52413267,112010.0,112000.0,0.00758215]
[1756936078818,0.8864593,112010.0,112000.0,0.00758215]
[1756936079029,0.8864593,112010.0,112000.0,0.00535001]
[1756936080169,0.8864593,112010.0,112000.0,1e-08]
[1756936080610,0.8864593,112010.0,112000.0,0.00212001]
[1756936081255,0.8607981,112010.0,112000.0,0.00212001]
[1756936081713,0.49847147,112010.0,112000.0,0.00212001]
[1756936081922,0.98128489,112010.0,112000.0,0.00212001]
[1756936082452,1.00644088,112010.0,112000.0,0.00212001]
[1756936082894,1.00644088,112010.0,112000.0,0.00520001]
[1756936083946,0.52362746,112010.0,112000.0,0.00743215]
[1756936086657,1.00644088,112010.0,112000.0,0.00743215]
[1756936087592,0.52362746,112010.0,112000.0,0.00743215]
[1756936087811,0.52362746,112010.0,112000.0,0.00520001]
[1756936088250,0.52362746,112010.0,112000.0,1e-08]
[1756936088514,0.52362746,112010.0,112000.0,0.00212001]
[1756936088717,0.45498746,112010.0,112000.0,0.00520001]
[1756936088905,0.45498746,112010.0,112000.0,0.00212001]
[1756936090139,0.45498746,112010.0,112000.0,0.00750215]
[1756936092061,0.45498746,112010.0,112000.0,0.00435215]
[1756936099206,0.42983147,112010.0,112000.0,0.00435215]
[1756936100510,0.45476835,112010.0,112000.0,0.00435215]
[1756936102625,0.45476835,112010.0,112000.0,0.00223215]
[1756936102840,0.45795835,112010.0,112000.0,0.00223215]
[1756936103029,0.45795835,112010.0,112000.0,1e-08]
[1756936103235,0.94077177,112010.0,112000.0,1e-08]
[1756936103477,0.93758177,112010.0,112000.0,1e-08]
[1756936106221,0.93758177,112010.0,112000.0,0.00203001]
[1756936108175,0.93758177,112010.0,112000.0,0.00426215]
[1756936108567,0.45476835,112010.0,112000.0,0.00426215]
[1756936110018,0.45476835,112010.0,112000.0,0.00741215]
[1756936112257,0.29848835,112010.0,112000.0,0.18598357]
[1756936112457,0.44864835,112010.0,112000.0,0.18375143]
[1756936112668,0.42371147,112010.0,112000.0,0.18375143]
[1756936112864,0.42371147,112010.0,112000.0,0.21059648]
[1756936117049,0.90652489,112010.0,112000.0,0.21059648]
[1756936126850,0.90867489,112010.0,112000.0,0.21059648]
[1756936128741,0.75643489,112010.0,112000.0,0.21059648]
[1756936128955,0.90628489,112010.0,112000.0,0.21059648]
[1756936129155,0.90843489,112010.0,112000.0,0.21059648]
[1756936130731,0.90628489,112010.0,112000.0,0.21059648]
[1756936131651,0.90843489,112010.0,112000.0,0.21059648]
[1756936132389,0.153,112010.0,112000.0,0.21059648]
[1756936132585,0.15296,112010.0,112000.0,0.21059648]
[1756936133114,0.15296,112010.0,112000.0,0.36255648]
[1756936133115,0.001,112010.0,112000.0,0.36255648]
[1756936133698,0.81332738,112020.0,112010.0,0.17855548]
[1756936133915,0.90739337,112020.0,112010.0,0.18590742]
[1756936134146,0.90739337,112020.0,112010.0,0.18367548]
[1756936134308,0.90739337,112020.0,112010.0,0.2105175]
[1756936136326,0.90839337,112020.0,112010.0,0.2105175]
[1756936138254,0.24702599,112020.0,112010.0,0.2105175]
[1756936138586,0.24487599,112020.0,112010.0,0.2105175]
[1756936139193,0.24702599,112020.0,112010.0,0.2105175]
[1756936139619,0.24702599,112020.0,112010.0,0.2115175]
[1756936139792,0.15196,112020.0,112010.0,0.2115175]
[1756936142024,0.8222232,112030.0,112010.0,0.2115175]
[1756936142205,0.91413919,112030.0,112020.0,0.00223174]
[1756936142441,0.91628919,112030.0,112020.0,0.00223174]
[1756936143037,0.43132577,112030.0,112020.0,0.18589128]
[1756936143214,0.43132577,112030.0,112020.0,0.18365954]
[1756936143454,0.43232577,112030.0,112020.0,0.18365954]
[1756936143643,0.79427961,112030.0,112020.0,0.18365954]
[1756936144243,0.79427961,112030.0,112020.0,0.2104994]
[1756936144441,0.79642961,112030.0,112020.0,0.2104994]
[1756936146377,0.43447577,112030.0,112020.0,0.2104994]
[1756936146857,0.79642961,112030.0,112020.0,0.2104994]
[1756936147551,0.001,112030.0,112020.0,0.3624194]
[1756936149910,0.001,112030.0,112020.0,0.72437324]
[1756936151553,0.001,112030.0,112020.0,0.72537324]
[1756936151944,0.63178146,112050.0,112040.0,0.17850767]
[1756936152143,0.72567745,112050.0,112040.0,0.33788901]
[1756936152415,0.72567745,112050.0,112040.0,0.33565767]
[1756936152605,0.64326721,112050.0,112040.0,0.36249295]
[1756936153184,0.64373559,112050.0,112040.0,0.36249295]
[1756936153721,0.64275559,112050.0,112040.0,0.36249295]
[1756936155509,0.65354969,112050.0,112040.0,0.36249295]
[1756936156571,0.36342222,112050.0,112040.0,0.36249295]
[1756936156705,0.37256529,112050.0,112040.0,0.36249295]
[1756936156901,0.55105703,112050.0,112040.0,0.36249295]
[1756936157302,0.36342222,112050.0,112040.0,0.36249295]
[1756936157933,0.36342222,112050.0,112040.0,0.36349295]
[1756936158155,0.00146838,112050.0,112040.0,0.36349295]
[1756936158844,0.00046838,112050.0,112040.0,0.36349295]
[1756936164530,0.00046838,112050.0,112040.0,0.72544679]
[1756936169794,0.00046838,112050.0,112040.0,0.72536679]
[1756936170021,0.00046838,112050.0,112040.0,0.72436679]
[1756936170224,0.00046838,112050.0,112040.0,0.72536679]
[1756936170701,0.00046838,112050.0,112040.0,0.72436679]
[1756936170939,0.00046838,112050.0,112040.0,0.72636679]
[1756936171744,0.00046838,112050.0,112040.0,0.72836679]
[1756936174283,0.00046838,112050.0,112040.0,0.74930561]
[1756936175841,0.00046838,112050.0,112040.0,1.11125945]
[1756936176767,0.00046838,112050.0,112040.0,1.20317544]
[1756936177130,0.00046838,112050.0,112040.0,1.54317544]
[1756936183481,0.00046838,112050.0,112040.0,1.94317544]
[1756936184393,0.00046838,112050.0,112040.0,1.21926776]
[1756936184602,0.00046838,112050.0,112040.0,1.94317544]
[1756936188361,0.00046838,112050.0,112040.0,1.54317544]
[1756936189574,0.00046838,112050.0,112040.0,1.64317544]
[1756936190850,0.00046838,112050.0,112040.0,1.64117544]
[1756936191384,0.00046838,112050.0,112040.0,1.64317544]
[1756936191594,0.00046838,112050.0,112040.0,1.64117544]
[1756936192011,0.00046838,112050.0,112040.0,1.64317544]
[1756936192382,0.00046838,112050.0,112040.0,2.04317544]
[1756936196349,0.00046838,112050.0,112040.0,2.40512928]
[1756936197659,0.00046838,112050.0,112040.0,2.40312928]
[1756936198061,0.00046838,112050.0,112040.0,2.40512928]
[1756936200293,0.07354631,112070.0,112060.0,1.31332231]
[1756936200494,0.07354631,112070.0,112060.0,1.6254783]
[1756936200495,0.07368671,112070.0,112060.0,1.6254783]
[1756936200667,0.07368671,112070.0,112060.0,1.6275883]
[1756936200884,0.0001404,112070.0,112060.0,1.6573381]
[1756936202673,0.0001404,112070.0,112060.0,1.6583381]
[1756936202884,0.0001404,112070.0,112060.0,1.6593381]
[1756936203581,0.0001404,112070.0,112060.0,1.41742082]
[1756936203832,0.0001404,112070.0,112060.0,1.45733256]
[1756936204773,0.0001404,112070.0,112060.0,1.90733256]
[1756936205927,0.0001404,112070.0,112060.0,1.90729256]
[1756936209484,0.0001404,112070.0,112060.0,1.75569256]
[1756936209710,0.0001404,112070.0,112060.0,1.90729256]
[1756936209925,0.0001404,112070.0,112060.0,2.17099256]
[1756936211738,0.0001404,112070.0,112060.0,2.17095256]
[1756936213018,0.00296,112100.0,112090.0,0.19936686]
[1756936213235,0.00296,112100.0,112090.0,0.41952686]
[1756936213442,0.00502,112100.0,112090.0,0.41952686]
[1756936213655,0.00502,112100.0,112090.0,1.02024905]
[1756936214076,0.00206,112100.0,112090.0,0.53825865]
[1756936214283,0.00206,112100.0,112090.0,1.02024905]
[1756936214728,0.00306,112100.0,112090.0,1.02931266]
[1756936215556,0.00306,112100.0,112090.0,1.03146266]
[1756936216895,0.00306,112100.0,112090.0,1.37146266]
[1756936217070,0.00306,112100.0,112090.0,1.36931266]
[1756936217252,0.00306,112100.0,112090.0,1.37449266]
[1756936217556,0.00306,112100.0,112090.0,1.37146266]
[1756936218768,0.00306,112100.0,112090.0,1.41172949]
[1756936218975,0.00306,112100.0,112090.0,0.92969909]
[1756936219189,0.00306,112100.0,112090.0,1.41168949]
[1756936219871,0.00306,112100.0,112090.0,0.92969909]
[1756936220138,0.00306,112100.0,112090.0,1.41168949]
[1756936220526,0.00306,112100.0,112090.0,1.41471949]
[1756936221637,0.00206,112100.0,112090.0,1.41471949]
[1756936221847,0.00206,112100.0,112090.0,1.41571949]
[1756936222643,0.00206,112100.0,112090.0,1.37545266]
[1756936223458,0.00206,112100.0,112090.0,1.37645266]
[1756936227185,0.00301,112110.0,112100.0,0.19935095]
[1756936227406,0.0031511,112110.0,112100.0,0.35083095]
[1756936227552,0.0052111,112110.0,112100.0,0.35083095]
[1756936227756,0.0052111,112110.0,112100.0,0.37764553]
[1756936228367,0.0062111,112110.0,112100.0,0.37764553]
[1756936228604,0.0032011,112110.0,112100.0,0.37764553]
[1756936230219,0.0032011,112110.0,112100.0,0.85963593]
[1756936230417,0.0032011,112110.0,112100.0,0.86178593]
[1756936230616,0.0032011,112110.0,112100.0,0.86481593]
[1756936232245,0.0032011,112110.0,112100.0,0.37764553]
[1756936232468,0.0032011,112110.0,112100.0,0.86178593]
[1756936233314,0.0032011,112110.0,112100.0,0.86481593]
[1756936234590,0.0011411,112110.0,112100.0,0.86477593]
[1756936235144,0.0032011,112110.0,112100.0,0.86477593]
[1756936235998,0.0032011,112110.0,112100.0,0.86473593]
[1756936236414,0.0032011,112110.0,112100.0,0.38274553]
[1756936238481,0.0032011,112110.0,112100.0,0.23134553]
[1756936238694,0.0032011,112110.0,112100.0,0.38274553]
[1756936240203,0.0011411,112110.0,112100.0,0.38274553]
[1756936245643,0.0011411,112110.0,112100.0,0.47466152]
[1756936249739,0.0011411,112110.0,112100.0,0.95665192]
[1756936250041,0.0011411,112110.0,112100.0,0.52466152]
[1756936250258,0.0011411,112110.0,112100.0,1.05665192]
[1756936251307,0.0001411,112110.0,112100.0,1.05665192]
[1756936251718,0.0001411,112110.0,112100.0,1.05765192]
[1756936252312,0.0001411,112110.0,112100.0,1.05865192]
[1756936253321,0.0001411,112110.0,112100.0,1.45865192]
[1756936253707,0.0001411,112110.0,112100.0,1.05865192]
[1756936254184,0.0001411,112110.0,112100.0,1.05857192]
[1756936255584,0.0001411,112110.0,112100.0,0.57658152]
[1756936255795,0.0001411,112110.0,112100.0,1.05857192]
[1756936257782,0.0001411,112110.0,112100.0,1.45857192]
[1756936257995,0.0001411,112110.0,112100.0,1.05857192]
[1756936258656,0.0001411,112110.0,112100.0,1.45857192]
[1756936259651,0.4819904,112140.0,112130.0,0.19930321]
[1756936259872,0.4819904,112140.0,112130.0,0.35054321]
[1756936259873,0.4831904,112140.0,112130.0,0.35054321]
[1756936260295,0.4831904,112140.0,112130.0,0.3773516]
[1756936261236,0.4861904,112140.0,112130.0,0.3773516]
[1756936261792,0.4881904,112140.0,112130.0,0.3773516]
[1756936262222,0.0062,112140.0,112130.0,0.3773516]
[1756936262462,0.4881904,112140.0,112130.0,0.3773516]
[1756936262761,0.0062,112140.0,112130.0,0.3773516]
[1756936262963,0.4881904,112140.0,112130.0,0.3773516]
[1756936263162,0.0062,112140.0,112130.0,0.3773516]
[1756936263369,0.4881904,112140.0,112130.0,0.3773516]
[1756936263615,0.36742799,112140.0,112130.0,0.3773516]
[1756936266771,0.0062,112140.0,112130.0,0.3773516]
[1756936266903,0.36742799,112140.0,112130.0,0.3773516]
[1756936268344,0.36742799,112140.0,112130.0,0.2261116]
[1756936268458,0.36742799,112140.0,112130.0,0.3773116]
[1756936269606,0.0062,112140.0,112130.0,0.3802616]
[1756936269792,0.36742799,112140.0,112130.0,0.3802616]
[1756936269997,0.36622799,112140.0,112130.0,0.3823816]
[1756936270471,0.005,112140.0,112130.0,0.3823816]
[1756936270985,0.003,112140.0,112130.0,0.3823816]
[1756936271199,0.36142799,112150.0,112140.0,0.17734849]
[1756936271400,0.36276906,112150.0,112140.0,0.17957784]
[1756936271602,0.00154107,112150.0,112140.0,0.17757784]
[1756936271828,0.36276906,112150.0,112140.0,0.17757784]
[1756936272469,0.36476906,112150.0,112140.0,0.17757784]
[1756936272710,0.36476906,112150.0,112140.0,0.20438501]
[1756936272903,0.36476906,112150.0,112140.0,0.20215566]
[1756936273678,0.36676906,112150.0,112140.0,0.20215566]
[1756936274466,0.36676906,112150.0,112140.0,0.20510566]
[1756936275321,0.00554107,112150.0,112140.0,0.20510566]
[1756936275527,0.00434107,112150.0,112140.0,0.22816448]
[1756936276112,0.36556906,112150.0,112140.0,0.22816448]
[1756936276322,0.00434107,112150.0,112140.0,0.22816448]
[1756936276498,0.00234107,112150.0,112140.0,0.22816448]
[1756936276706,0.00034107,112150.0,112140.0,0.22816448]
[1756936276887,0.00234107,112150.0,112140.0,0.22816448]
[1756936279214,0.00234107,112150.0,112140.0,0.68130846]
[1756936279404,0.00234107,112150.0,112140.0,0.32008047]
[1756936280188,0.00134107,112150.0,112140.0,0.32008047]
[1756936280437,0.00034107,112150.0,112140.0,0.32008047]
[1756936280890,0.00034107,112150.0,112140.0,0.47120047]
[1756936284857,0.00034107,112150.0,112140.0,0.47116047]
[1756936285734,0.00034107,112150.0,112140.0,0.83238846]
[1756936286172,0.00034107,112150.0,112140.0,0.47116047]
[1756936286383,0.00034107,112150.0,112140.0,0.83238846]
[1756936289159,0.00034107,112150.0,112140.0,0.87185389]
[1756936292706,0.00034107,112150.0,112140.0,0.87181389]
[1756936293599,0.00034107,112150.0,112140.0,0.3544759]
[1756936293806,0.36276906,112150.0,112140.0,0.20215566]
[1756936294006,0.54185165,112150.0,112140.0,0.02680717]
[1756936294210,0.56571165,112150.0,112140.0,0.20515566]
[1756936294405,0.56571165,112150.0,112140.0,0.35615566]
[1756936297283,0.56571165,112150.0,112140.0,0.20515566]
[1756936297484,0.56571165,112150.0,112140.0,0.35615566]
[1756936297838,0.56571165,112150.0,112140.0,0.20515566]
[1756936298041,0.56571165,112150.0,112140.0,0.35615566]
[1756936299424,0.56496165,112150.0,112140.0,0.35615566]
[1756936300723,0.20373366,112150.0,112140.0,0.35615566]
[1756936300942,0.56496165,112150.0,112140.0,0.35615566]
[1756936303714,0.56496165,112150.0,112140.0,0.20515566]
[1756936303937,0.56571165,112150.0,112140.0,0.35611566]
[1756936305429,0.56496165,112150.0,112140.0,0.35611566]
[1756936305868,0.56496165,112150.0,112140.0,0.20515566]
[1756936306052,0.56496165,112150.0,112140.0,0.35611566]
[1756936308455,0.56396165,112150.0,112140.0,0.35607566]
[1756936309786,0.54010165,112150.0,112140.0,0.35607566]
[1756936310946,0.54010165,112150.0,112140.0,0.17772717]
[1756936311148,0.90132964,112150.0,112140.0,0.02680717]
[1756936311352,0.90132964,112150.0,112140.0,0.15092]
[1756936311557,0.90132964,112150.0,112140.0,0.1777283]
[1756936312452,0.54010165,112150.0,112140.0,0.1777283]
[1756936313051,0.54010165,112150.0,112140.0,0.0268083]
[1756936313250,0.54010165,112150.0,112140.0,0.1776883]
[1756936314118,0.54010165,112150.0,112140.0,0.0268083]
[1756936314319,0.54010165,112150.0,112140.0,0.1776883]
[1756936314729,0.90132964,112150.0,112140.0,0.0268083]
[1756936314931,0.90132964,112150.0,112140.0,0.1776883]
[1756936315134,0.54010165,112150.0,112140.0,0.1776883]
[1756936315738,0.54010165,112150.0,112140.0,0.15088]
[1756936316185,0.90132964,112150.0,112140.0,0.15088]
[1756936316866,0.54010165,112150.0,112140.0,0.15088]
[1756936317886,0.17887366,112150.0,112140.0,0.15398]
[1756936318091,0.90355611,112150.0,112140.0,0.15088]
[1756936318298,0.90132964,112150.0,112140.0,0.15088]
[1756936320728,0.17834849,112140.0,112130.0,0.2292116]
[1756936320926,0.90080447,112140.0,112130.0,0.3820716]
[1756936322281,0.90080447,112140.0,112130.0,0.3840716]
[1756936323033,0.90080447,112140.0,112130.0,0.3850716]
[1756936323237,0.72245598,112140.0,112130.0,0.3850716]
[1756936324759,0.90080447,112140.0,112130.0,0.3850716]
[1756936325503,0.65998942,112140.0,112130.0,0.3850716]
[1756936328009,0.66012942,112140.0,112130.0,0.2342316]
[1756936328171,0.66012942,112140.0,112130.0,0.3850316]
[1756936328385,0.65998942,112140.0,112130.0,0.3850316]
[1756936333202,0.48164093,112140.0,112130.0,0.3850316]
[1756936334800,0.48164093,112140.0,112130.0,0.3846274]
[1756936335057,0.48164093,112140.0,112130.0,0.38422195]
[1756936335386,0.65998942,112140.0,112130.0,0.38422195]
[1756936338202,0.65998942,112140.0,112130.0,0.45278195]
[1756936340027,0.66010849,112140.0,112130.0,0.45278195]
[1756936341153,0.65998942,112140.0,112130.0,0.45266288]
[1756936347343,0.48164093,112140.0,112130.0,0.45266288]
[1756936350871,0.65998942,112140.0,112130.0,0.45266288]
[1756936352614,0.48164093,112140.0,112130.0,0.45266288]
[1756936353460,0.17833259,112150.0,112130.0,0.45266288]
[1756936353675,0.48164093,112140.0,112130.0,0.45266288]
[1756936354712,0.48164093,112140.0,112130.0,0.45166288]
[1756936354918,0.48164093,112140.0,112130.0,0.45161785]
[1756936356463,0.48164093,112140.0,112130.0,0.45261785]
[1756936368891,0.65997352,112150.0,112130.0,0.45261785]
[1756936369914,0.65997352,112150.0,112130.0,0.45161785]
[1756936370122,0.65997352,112150.0,112130.0,0.44961785]
[1756936372244,0.17834849,112140.0,112130.0,0.44961785]
[1756936372517,0.65997352,112150.0,112130.0,0.29881785]
[1756936372726,0.65997352,112150.0,112140.0,0.15052]
[1756936372929,0.66011352,112150.0,112140.0,0.15052]
[1756936373977,0.66011352,112150.0,112130.0,0.29779785]
[1756936374177,0.66011352,112150.0,112140.0,0.15052]
[1756936375471,0.66011352,112150.0,112130.0,0.29679785]
[1756936375690,0.66011352,112150.0,112140.0,0.15048]
[1756936376216,0.66011352,112150.0,112130.0,0.29679785]
[1756936376419,0.17834849,112140.0,112130.0,0.29679785]
[1756936376624,0.17834849,112140.0,112130.0,0.44727785]
[1756936376828,0.17834849,112140.0,112130.0,0.44934785]
[1756936377634,0.17834849,112140.0,112130.0,0.45134785]
[1756936378836,0.17834849,112140.0,112130.0,0.45234785]
[1756936379161,0.65997352,112150.0,112130.0,0.45234785]
[1756936379851,0.17834849,112140.0,112130.0,0.45034785]
[1756936380040,0.17834849,112140.0,112130.0,0.44934785]
[1756936381606,0.17834849,112140.0,112130.0,0.42840903]
[1756936382399,0.17834849,112140.0,112130.0,0.42940903]
[1756936382895,0.17834849,112140.0,112130.0,0.43140903]
[1756936385606,0.53957278,112140.0,112130.0,0.43140903]
[1756936388479,0.17834849,112140.0,112130.0,0.43140903]
[1756936388660,0.53957278,112140.0,112130.0,0.43140903]
[1756936391211,0.36122429,112140.0,112130.0,0.43140903]
[1756936392159,0.53957278,112140.0,112130.0,0.43140903]
[1756936393294,0.36122429,112140.0,112130.0,0.43140903]
[1756936393509,0.53957278,112140.0,112130.0,0.43140903]
[1756936393902,0.36122429,112140.0,112130.0,0.43140903]
[1756936394334,0.53957278,112140.0,112130.0,0.43140903]
[1756936401124,0.36122429,112140.0,112130.0,0.43140903]
[1756936403025,0.53957278,112140.0,112130.0,0.43120903]
[1756936403855,0.36122429,112140.0,112130.0,0.43120903]
[1756936407519,0.53957278,112140.0,112130.0,0.43120903]
[1756936409971,0.36122429,112140.0,112130.0,0.43120903]
[1756936428780,0.17833259,112150.0,112130.0,0.43120903]
[1756936429020,0.36122429,112140.0,112130.0,0.28092903]
[1756936429193,0.36122429,112140.0,112130.0,0.25412064]
[1756936429397,0.36136429,112140.0,112130.0,0.42897903]
[1756936429614,0.36136429,112140.0,112130.0,0.42697903]
[1756936429826,0.36136429,112140.0,112130.0,0.42597903]
[1756936430542,0.53971278,112140.0,112130.0,0.42597903]
[1756936431450,0.53971278,112140.0,112130.0,0.43010903]
[1756936432261,0.53971278,112140.0,112130.0,0.43110903]
[1756936434380,0.36136429,112140.0,112130.0,0.43110903]
[1756936434714,0.36122429,112140.0,112130.0,0.43110903]
[1756936435641,0.17833259,112150.0,112130.0,0.43110903]
[1756936435786,0.36122429,112140.0,112130.0,0.43110903]
[1756936435991,0.36122429,112140.0,112130.0,0.40430064]
[1756936436189,0.36122429,112140.0,112130.0,0.43110903]
[1756936438062,0.17833259,112150.0,112130.0,0.43110903]
[1756936438239,0.36122429,112140.0,112130.0,0.43110903]
[1756936438439,0.36122429,112140.0,112130.0,0.40430064]
[1756936438625,0.36122429,112140.0,112130.0,0.43110903]
[1756936439862,0.36122429,112140.0,112130.0,0.43010903]
[1756936440446,0.36122429,112140.0,112130.0,0.43110903]
[1756936445839,0.17833259,112150.0,112130.0,0.43110903]
[1756936446042,0.17833259,112150.0,112140.0,0.17834849]
[1756936446524,0.17847259,112150.0,112140.0,0.20515688]
[1756936447264,0.53969688,112150.0,112140.0,0.03001839]
[1756936447423,0.66008349,112150.0,112140.0,0.03001839]
[1756936448487,0.66008349,112150.0,112140.0,0.20836688]
[1756936449689,0.66008349,112150.0,112140.0,0.03001839]
[1756936449988,0.66008349,112150.0,112140.0,0.20836688]
[1756936452131,0.66008349,112150.0,112140.0,0.35832688]
[1756936453774,0.17847259,112150.0,112140.0,0.35832688]
[1756936453981,0.66230996,112150.0,112140.0,0.35832688]
[1756936454234,0.66008349,112150.0,112140.0,0.35832688]
[1756936454408,0.66008349,112150.0,112140.0,0.20836688]
[1756936454634,0.66008349,112150.0,112140.0,0.35832688]
[1756936462280,0.66008349,112150.0,112140.0,0.35828688]
[1756936463263,0.66008349,112150.0,112140.0,0.20836688]
[1756936463446,0.66008349,112150.0,112140.0,0.35824688]